Cogmind - Beta 15 @@@ ROGUE MODE // 2025.05.18 @ 14:16:29 Player: Iry-bot Result: Destroyed by Y-64 Sentinel with KE Penetrator Performance ------------- Evolutions (5) 2500 Regions Visited (6) 1200 Robots Destroyed (158) 790 Value Destroyed (5962) 5962 Prototype IDs (5) 100 Alien Tech Used (0) 0 Bonus (2671) 2671 TOTAL SCORE: 13223 Bonus ------- High Alert Combat Kills 1255 Entered Garrisons 200 Used RIF Installer 500 Registered with UFD 300 Met Optimus in HQ 500 Friendly Fire -84 Cogmind --------- Core Integrity 0/1000 Matter 246/300 Energy 220/220 System Corruption 16% Temperature Cool (9) Movement Walking (120) Location -5/Factory Parts ------- > --- POWER (2) -------- Light Fission Core Light Fission Core > --- PROPULSION (5) --- Carbon-fiber Leg Carbon-fiber Leg Flexi-carbon Leg Thunder Leg Enhanced Armored Leg > --- UTILITY (7) ------ Improved Heat Sink Large Storage Unit Improved Sensor Array Improved Signal Interpreter Targeting Computer Improved Medium Armor Plating Makeshift System Shield > --- WEAPON (3) ------- KE Penetrator KE Penetrator KE Penetrator > --- INVENTORY (15) --- Neutrino Core Micro Fission Core Carbon-fiber Leg Carbon-fiber Leg Carbon-fiber Leg Advanced Heat Sink Improved Weapon Cycler Advanced Hacking Suite Relay Coupler [NC] (24) Relay Coupler [Grunt] (25) Relay Coupler [Behemoth] (12) Beamcaster Improved Remote Datajack Segregator DRS Beacon (Ready) Peak State ------------ > --- POWER ------------ Neutrino Core Light Antimatter Reactor > --- PROPULSION ------- Carbon-fiber Leg Carbon-fiber Leg Flexi-carbon Leg Thunder Leg Enhanced Armored Leg > --- UTILITY ---------- Advanced Heat Sink Large Storage Unit Improved Sensor Array Improved Signal Interpreter Targeting Computer Improved Medium Armor Plating Makeshift System Shield > --- WEAPON ----------- Wave Gun KE Penetrator KE Penetrator > --- INVENTORY -------- Neutrino Core Micro Fission Core Carbon-fiber Leg Carbon-fiber Leg Carbon-fiber Leg Carbon-fiber Leg Advanced Heat Sink Improved Weapon Cycler Relay Coupler [NC] Relay Coupler [Grunt] Relay Coupler [Behemoth] Improved Remote Datajack Segregator DRS Beacon [Rating: 82] Favorites ----------- Power Light Ion Engine Engine Light Ion Engine Power Core Light Nuclear Core Reactor Light Antimatter Reactor Propulsion Light Treads Treads Light Treads Leg Carbon-fiber Leg Wheel Compact Wheel Utility High-capacity Storage Unit Device IFF Parser Storage High-capacity Storage Unit Processor Targeting Computer Hackware Makeshift System Shield Protection Makeshift Light Armor Plating Weapon Beam Cannon Energy Gun Wave Gun Energy Cannon Beam Cannon Ballistic Gun KE Penetrator Ballistic Cannon Enhanced Gauss Cannon Launcher Grenade Launcher Special Weapon Improved Remote Datajack Slashing Weapon Segregator Build | -11 -10 -10 -7 -5 -5 -5 ------- Run | Yrd Mat Sub Scr Fac Gar Fac Slots Evolved 10 | . . . . 10 . . Power 1 | . . . . 1 . . Propulsion 3 | . . . . 3 . . Utility 5 | . . . . 5 . . Weapon 1 | . . . . 1 . . Parts Attached 148 | 8 9 5 7 58 51 10 Power 34 | 1 3 1 1 11 15 2 Engine 18 | 1 3 1 1 7 5 . Core 15 | . . . . 3 10 2 Reactor 1 | . . . . 1 . . Propulsion 37 | 3 . 2 2 13 15 2 Treads 11 | 2 . 2 2 5 . . Leg 25 | . . . . 8 15 2 Wheel 1 | 1 . . . . . . Hover . | . . . . . . . Flight . | . . . . . . . Utility 37 | 2 3 . 2 21 5 4 Device 22 | 1 1 . 1 15 1 3 Storage 3 | 1 1 . . 1 . . Processor 7 | . 1 . . 4 1 1 Hackware 1 | . . . . . 1 . Protection 4 | . . . 1 1 2 . Artifact . | . . . . . . . Weapon 40 | 2 3 2 2 13 16 2 Energy Gun 8 | 2 . . . . 6 . Energy Cannon 7 | . 2 2 . 3 . . Ballistic Gun 19 | . . . 2 9 7 1 Ballistic Cannon 2 | . . . . 1 . 1 Launcher 1 | . 1 . . . . . Special Weapon 1 | . . . . . 1 . Impact Weapon . | . . . . . . . Slashing Weapon 2 | . . . . . 2 . Piercing Weapon . | . . . . . . . Special Melee Weapon . | . . . . . . . Unidentified Prototypes 5 | . . . . 5 . . Parts Lost 59 | . . 4 . 27 28 . Power 13 | . . . . 6 7 . Propulsion 15 | . . 2 . 7 6 . Utility 11 | . . . . 7 4 . Weapon 20 | . . 2 . 7 11 . Highest Loss Streak 18 | . . 4 . 18 9 . To Critical Strikes 1 | . . . . . 1 . Average Backups 14 | 2 12 15 15 14 13 13 Power 1 | . 1 2 1 1 1 2 Propulsion 3 | 1 3 3 3 1 4 3 Utility 3 | . 1 3 4 3 4 5 Weapon 4 | . 5 6 6 4 1 1 Tool/Special . | . . . . . . . Unused Backups 35 | . 2 . 14 8 2 9 Power 4 | . . . 2 1 . 1 Propulsion 5 | . 1 . 2 1 . 1 Utility 13 | . . . 4 3 . 6 Weapon 12 | . 1 . 6 3 1 1 Tool/Special 1 | . . . . . 1 . Average Slot Usage (%) 96 | . 99 100 99 86 97 99 Engine 9 | . 14 14 14 6 2 . Core 2 | . . . . 3 6 9 Treads 19 | . 28 28 28 19 . . Leg 8 | . . . . 4 28 29 Device 13 | . 11 14 13 18 12 11 Storage 9 | . 14 14 14 5 5 5 Processor 4 | . 2 . . 4 15 10 Protection 1 | . . . . 3 2 5 Energy Gun 2 | . 2 . . 6 3 1 Energy Cannon 14 | . 24 28 27 . . . Ballistic Gun 4 | . . . . 9 7 12 Peak Build Rating 82 | 9 10 10 29 79 78 82 Average Rating 38 | 5 8 9 14 65 69 79 On Entrance 29 | . 9 9 10 29 74 78 Naked Turns . | . . . . . . . Heaviest Build 86 | 14 52 50 57 86 70 73 Greatest Support 93 | 40 40 40 40 90 85 93 Greatest Overweight (x) 18 | . 1 1 1 18 1 . Average Overweight (x) . | . . 1 1 . . . Largest Inventory Capacity 20 | 8 20 20 20 20 15 15 Average Capacity 18 | 7 19 20 20 19 15 15 Most Carried 20 | 4 20 20 20 20 15 15 Average Carried 16 | 2 13 19 19 16 14 14 Final Capacity 20 | 8 20 20 20 15 15 15 Final Carried 20 | 4 20 20 20 15 13 15 Class Distribution -------------------- 54% | Mutant 16% | Scavenger-Scrapper 14% | Scavenger-Gunner 7% | Scavenger-Mutant 7% | Scavenger-Skirmisher Dominant Class ---------------- Mutant | -10/Materials Mutant | -10/Subcaves Mutant | -7/Scraptown Scavenger-Scrapper | -5/Factory Scavenger-Gunner | -5/Garrison Scavenger-Skirmisher | -5/Factory Resources | -11 -10 -10 -7 -5 -5 -5 ----------- Run | Yrd Mat Sub Scr Fac Gar Fac Matter Collected 4863 | 280 170 67 60 1913 1803 570 Remotely 1182 | . . . . 497 685 . Salvage Created 8988 | 105 501 125 107 5185 1928 1037 Parts 343 | 5 31 9 5 176 83 34 Haulers Intercepted 7 | . 2 . . 5 . . Recyclers Shooed 16 | . . . . 11 . 5 Parts Field Recycled . | . . . . . . . Retrieved Matter . | . . . . . . . Parts Self-Destructed 9 | . . 9 . . . . Prevented . | . . . . . . . Kills | -11 -10 -10 -7 -5 -5 -5 ------- Run | Yrd Mat Sub Scr Fac Gar Fac Combat Hostiles Destroyed 106 | . 11 4 2 41 45 3 Melee 1 | . . . . . 1 . Guns 70 | . . . . 37 32 1 Cannons 33 | . 11 4 2 2 12 2 AOE 1 | . . . . 1 . . Classes Destroyed 15 | 2 5 1 1 5 1 . Worker 14 | . 2 . . 7 . 5 Builder 1 | . . . . 1 . . Tunneler 2 | 1 . . . . . 1 Hauler 7 | . 2 . . 5 . . Recycler 21 | 1 . . . 14 . 6 Watcher 7 | . 3 . . 3 . 1 Swarmer 16 | . 5 2 . . 9 . Saboteur 5 | . . . . . 5 . Grunt 50 | . 6 . . 27 17 . Duelist 3 | . . . . 1 1 1 Sentry 9 | . . . . 3 5 1 Hunter 8 | . . . . 4 4 . Programmer 11 | . . . . 6 4 1 Subdweller 2 | . . 2 . . . . Ranger 2 | . . . 2 . . . Best Kill Streak 14 | 1 3 2 2 14 12 5 Combat Bots Only 12 | . 3 2 2 6 12 2 Max Kills in Single Turn 3 | 1 2 1 1 2 3 1 Gunslinging 1 | . . . . . 1 . Exploded 1 | . . . . 1 . . Melee 1 | . . . . . 1 . Uniques/NPCs Destroyed . | . . . . . . . Combat | -11 -10 -10 -7 -5 -5 -5 -------- Run | Yrd Mat Sub Scr Fac Gar Fac Hostile Shots Fired 827 | . 75 32 8 354 322 36 Missed 239 | . 21 7 2 92 107 10 Hits 588 | . 54 25 6 262 215 26 Melee 6 | . . . . 4 2 . Projectile 582 | . 54 25 6 258 213 26 AOE 2 | . . . . 2 . . Critical Strikes 23 | . 1 . 1 12 7 2 Part Disruptions 1 | . . . . . 1 . Damage Taken 10650 | . 530 396 60 4861 4269 534 Core 1196 | . 115 65 11 542 417 46 Absorbed by Shields . | . . . . . . . Regen/Repaired (Parts) 160 | . . . . 160 . . Core Remaining (%) 61 | 100 . . 23 . . . Volleys Fired 415 | 3 51 15 4 181 125 36 Largest 3 | 2 2 2 2 3 3 3 Hottest 243 | 90 120 120 120 243 231 147 Shots Fired 1045 | 6 98 30 8 499 302 102 Gun 790 | 6 . . . 482 222 80 Cannon 248 | . 94 30 8 17 77 22 Launcher 4 | . 4 . . . . . Special 3 | . . . . . 3 . Kinetic 655 | . . . . 324 230 101 Thermal 380 | 6 94 30 8 172 69 1 Explosive 4 | . 4 . . . . . Electromagnetic 3 | . . . . 3 . . Robot Hit Streak 20 | 4 8 8 9 20 11 9 Robot Miss Streak 7 | . 7 4 2 6 4 6 Penetration Max 1 | . . . . 1 1 1 Secondary Targets 15 | . . . . 9 6 . Max Gunslinging Chain 2 | . . . . 1 2 . Shots Hit Robots 668 | 4 46 18 5 357 170 68 Core Hits 330 | 3 18 6 3 154 84 62 Critical Kills 7 | . . . . 2 5 . Critical Parts Destroyed 13 | . . . . 5 6 2 Critical Strikes 47 | 1 . . . 15 29 2 Burn 13 | 1 . . . 7 5 . Destroy 20 | . . . . 7 11 2 Blast 13 | . . . . . 13 . Corrupt 1 | . . . . 1 . . Melee Attacks 36 | . . . . . 36 . Thermal 36 | . . . . . 36 . Impact . | . . . . . . . Slashing . | . . . . . . . Piercing . | . . . . . . . Sneak Attacks . | . . . . . . . Combat Hostiles . | . . . . . . . Follow-up Attacks . | . . . . . . . Damage Inflicted 16649 | 43 899 319 88 8334 4774 2192 Guns 12400 | 43 . . . 7612 3177 1568 Cannons 4031 | . 891 319 88 512 1597 624 Explosions 186 | . . . . 186 . . Melee . | . . . . . . . Ramming 32 | . 8 . . 24 . . Kinetic 10874 | . . . . 5016 3689 2169 Thermal 5432 | 43 891 319 88 2983 1085 23 Explosive 186 | . . . . 186 . . Electromagnetic 125 | . . . . 125 . . Impact . | . . . . . . . Slashing . | . . . . . . . Piercing . | . . . . . . . Highest Corruption 16 | . . . . 6 13 16 Average Corruption 6 | . . . . 2 7 14 Corruption Purged . | . . . . . . . Corruption Blocked . | . . . . . . . Effects 102 | . . . . 22 59 21 Message Errors 26 | . . . . 7 15 4 Matter Fused 23 | . . . . 4 14 5 Heat Flow Errors 14 | . . . . 3 11 . Energy Discharges 13 | . . . . 3 6 4 Parts Rejected 1 | . . . . . . 1 Data Loss (minor) 11 | . . . . 3 5 3 Data Loss (major) 5 | . . . . 1 2 2 Misfires 2 | . . . . . 1 1 Weapon Failures 7 | . . . . 1 5 1 Overload Shots . | . . . . . . . Overflow Damage 109 | . 15 . . 51 43 . Projectiles 109 | . 15 . . 51 43 . Explosions . | . . . . . . . Melee . | . . . . . . . Knockbacks 20 | . . . . 1 9 10 Impact 1 | . . . . 1 . . Kinetic 17 | . . . . . 8 9 Secondary 2 | . . . . . 1 1 Self-Inflicted Damage 22 | . 22 . . . . . Shots 1 | . 1 . . . . . Rammed 3 | . 1 . . 2 . . Targets Rammed 5 | . 3 . . 2 . . Kicked . | . . . . . . . Crushed 2 | . 2 . . . . . Highest Temperature 495 | 30 378 . 240 495 385 27 Average Temperature 119 | 16 131 . 114 137 89 11 Received Heat Transfer 2143 | . 120 93 37 1074 729 90 Effects 11 | . 4 . . 7 . . Shutdowns 2 | . . . . 2 . . Energy Bleed 4 | . 2 . . 2 . . Interference 1 | . . . . 1 . . Matter Decay 3 | . 1 . . 2 . . Short Circuit 1 | . 1 . . . . . Siege Activations . | . . . . . . . Martial Activations . | . . . . . . . Shielding Activations . | . . . . . . . Robots Disrupted . | . . . . . . . Combat Hostiles . | . . . . . . . Robots Corrupted 1 | . . . . 1 . . Combat Hostiles 1 | . . . . 1 . . Parts Fried 1 | . . . . 1 . . Impact Corruptions . | . . . . . . . Robots Melted . | . . . . . . . Combat Hostiles . | . . . . . . . Parts Melted 16 | 1 4 . 1 6 3 1 Heat Transferred 9932 | 186 1850 666 185 4884 2124 37 Parts Sabotaged 4 | . . . . . 4 . Parts Stolen . | . . . . . . . Parts Stripped . | . . . . . . . Power Chain Reactions . | . . . . . . . Alert | -11 -10 -10 -7 -5 -5 -5 ------- Run | Yrd Mat Sub Scr Fac Gar Fac Maximum Alert Level 4 | . . . . 2 4 3 Low Security (%) 51 | 100 100 . . 71 . . Level 1 5 | . . . . 16 . . Level 2 9 | . . . . 11 9 28 Level 3 15 | . . . . . 32 71 Level 4 17 | . . . . . 57 . Level 5 . | . . . . . . . High Security . | . . . . . . . Max Security . | . . . . . . . Peak Influence 1454 | 5 87 . . 604 1454 763 Initial 763 | . . . . . 419 763 Average 454 | . 28 . . 166 1095 712 Influence Increases 3356 | 10 414 50 . 1318 1375 189 Destroy 0b10 Robot/C 2040 | . 220 40 . 820 900 60 Destroy 0b10 Robot/NC 260 | 10 35 . . 150 . 65 Destroy Leader 268 | . 50 10 . 156 30 22 Successful Hack 31 | . 22 . . 9 . . Select Force Hacks 30 | . 30 . . . . . Disable Machine 105 | . 15 . . 30 30 30 Anti-Garrison Action 300 | . . . . . 300 . Destroy Structure 157 | . 27 . . 78 40 12 Lose Combat Pursuer 165 | . 15 . . 75 75 . Influence Decreases 2642 | 10 406 58 . 719 520 929 Entered New Map 875 | . . 4 . . 180 691 Time Decay 1117 | 10 406 14 . 449 . 238 Lost Part 590 | . . 40 . 270 280 . Lost Ally 60 | . . . . . 60 . Squads Dispatched 18 | . 2 . . 12 . 4 Investigation 4 | . 2 . . 2 . . Extermination 4 | . . . . 3 . 1 Reinforcement 7 | . . . . 5 . 2 Assault 1 | . . . . . . 1 Garrison 2 | . . . . 2 . . Intercept . | . . . . . . . Searches Triggered . | . . . . . . . Construction Impeded 1 | . . . . . . 1 Haulers Reinforced 5 | . . . . 5 . . Active Scanning Responses . | . . . . . . . Cargo Convoy Interrupts . | . . . . . . . Stealth | -11 -10 -10 -7 -5 -5 -5 --------- Run | Yrd Mat Sub Scr Fac Gar Fac Distress Signals 3 | . . . . 2 . 1 Communications Jammed . | . . . . . . . Distress Signals . | . . . . . . . Times Spotted 144 | . 19 4 5 52 51 13 Peak Tracking Total 11 | . 5 3 2 6 11 5 Tactical Retreats 8 | . 1 . . 3 4 . Traps | -11 -10 -10 -7 -5 -5 -5 ------- Run | Yrd Mat Sub Scr Fac Gar Fac Traps Triggered 6 | . . . . 2 3 1 Indirectly . | . . . . . . . Trap Hack Attempts . | . . . . . . . Triggered . | . . . . . . . Disarmed . | . . . . . . . Reprogrammed . | . . . . . . . Reused . | . . . . . . . Traps Extracted . | . . . . . . . Installed . | . . . . . . . Triggered . | . . . . . . . Machines | -11 -10 -10 -7 -5 -5 -5 ---------- Run | Yrd Mat Sub Scr Fac Gar Fac Machines Disabled 9 | . 1 . . 2 4 2 Max in Single Turn 2 | . 1 . . 1 1 2 Garrison Relay 3 | . . . . . 3 . Machines Repaired . | . . . . . . . Machines Dismantled . | . . . . . . . Machines Sabotaged . | . . . . . . . Overloaded Fab Kills . | . . . . . . . Hacking | -11 -10 -10 -7 -5 -5 -5 --------- Run | Yrd Mat Sub Scr Fac Gar Fac Machines Accessed 22 | . 8 1 4 5 2 2 Terminals 12 | . 7 . . 2 2 1 Fabricators . | . . . . . . . Repair Stations . | . . . . . . . Recycling Units 4 | . 1 . . 2 . 1 Scanalyzers . | . . . . . . . Garrison Access 1 | . . . . 1 . . Total Hacks 67 | . 32 4 14 10 4 3 Successful 40 | . 18 4 14 3 . 1 Failed 27 | . 14 . . 7 4 2 Catastrophic 3 | . . . . 1 . 2 Database Lockouts . | . . . . . . . Manual 40 | . 30 . . 4 4 2 Terminals 40 | . 29 . . 5 4 2 Fabricators . | . . . . . . . Repair Stations . | . . . . . . . Recycling Units 8 | . 3 . . 4 . 1 Scanalyzers . | . . . . . . . Garrison Access 1 | . . . . 1 . . Terminal Hacks 27 | . 8 4 14 1 . . Record 18 | . . 4 14 . . . Robot Analysis 4 | . 4 . . . . . Open DSF 1 | . . . . 1 . . Branch Access Points 2 | . 2 . . . . . Terminal Index 1 | . 1 . . . . . Alert Level 1 | . 1 . . . . . Fabricator Hacks . | . . . . . . . Repair Station Hacks . | . . . . . . . Recycling Unit Hacks 4 | . 2 . . 1 . 1 Retrieve Matter 2 | . 1 . . 1 . . Retrieve Components 2 | . 1 . . . . 1 Scanalyzer . | . . . . . . . Garrison Access Hacks 1 | . . . . 1 . . Unlock Access 1 | . . . . 1 . . Unauthorized Hacks 8 | . 8 . . . . . Terminals 7 | . 7 . . . . . Botnet 5 | . 5 . . . . . Operators 2 | . 2 . . . . . Fabricators . | . . . . . . . Repair Stations . | . . . . . . . Recycling Units 1 | . 1 . . . . . Tunnel 1 | . 1 . . . . . Scanalyzers . | . . . . . . . Garrison Access . | . . . . . . . Data Cores Recovered . | . . . . . . . Used . | . . . . . . . Hacking Detections 15 | . 8 . . 4 2 1 Full Trace Events . | . . . . . . . Feedback Events . | . . . . . . . Feedback Blocked . | . . . . . . . Robot Schematics Acquired . | . . . . . . . Robots Built . | . . . . . . . Authchips . | . . . . . . . Time . | . . . . . . . Total Robot Build Rating . | . . . . . . . Part Schematics Acquired . | . . . . . . . Parts Built . | . . . . . . . Authchips . | . . . . . . . Time . | . . . . . . . Total Part Build Rating . | . . . . . . . Parts Repaired . | . . . . . . . Time . | . . . . . . . Parts Recycled . | . . . . . . . Recycled Matter . | . . . . . . . Retrieved Matter 221 | . 221 . . . . . Retrieved Components 19 | . 9 . . . . 10 Parts Scanalyzed . | . . . . . . . Part Schematics Acquired . | . . . . . . . Parts Damaged . | . . . . . . . Bothacking | -11 -10 -10 -7 -5 -5 -5 ------------ Run | Yrd Mat Sub Scr Fac Gar Fac Used RIF Installer 1 | . . . . . 1 . Robots Hacked . | . . . . . . . Non-combat . | . . . . . . . Combat . | . . . . . . . Robot Hacks Applied . | . . . . . . . Relay Couplers Released 14 | . . . . . 14 . Machine Destruction 11 | . . . . . 11 . Programmers 3 | . . . . . 3 . Fabnet Peak Effective % . | . . . . . . . Robots Rewired 3 | . . . . . 3 . Allies Hacked . | . . . . . . . Hacks Repelled . | . . . . . . . Allies | -11 -10 -10 -7 -5 -5 -5 -------- Run | Yrd Mat Sub Scr Fac Gar Fac Total Allies 3 | . . . . . 3 . Largest Group 3 | . . . . . 3 . Highest-Rated Group 42 | . . . . . 42 . Highest-Rated Ally 14 | . . . . . 14 . Total Orders . | . . . . . . . Ally Attacks . | . . . . . . . Total Damage . | . . . . . . . Kills . | . . . . . . . Allies Corrupted . | . . . . . . . Allies Melted . | . . . . . . . Intel | -11 -10 -10 -7 -5 -5 -5 ------- Run | Yrd Mat Sub Scr Fac Gar Fac Active Infowar (turns) 7010 | 21 892 . 2810 1025 1749 513 Sensors 3278 | . . . . 1016 1749 513 IFF 3442 | . . . 2810 632 . . Terrain 607 | 21 586 . . . . . T.N.C. 306 | . 306 . . . . . Robot Analysis Total 4 | . 4 . . . . . Derelict Logs Recovered 4 | . . . 4 . . . Drone Launches . | . . . . . . . Drone Recoveries . | . . . . . . . Exploration | -11 -10 -10 -7 -5 -5 -5 ------------- Run | Yrd Mat Sub Scr Fac Gar Fac Turns Passed 9552 | 112 1561 402 3086 2048 1830 513 Spaces Moved 4249 | 58 568 145 1271 914 981 312 Core 4 | 1 . . . 3 . . Treads 2796 | 51 568 145 1271 761 . . Legs 1443 | . . . . 150 981 312 Wheels 6 | 6 . . . . . . Hover . | . . . . . . . Flight . | . . . . . . . Fastest Speed 50 | 50 160 240 160 120 120 120 Average Speed 181 | 151 238 240 238 144 120 120 Slowest Speed 950 | 160 240 240 240 950 190 120 Overloaded Moves . | . . . . . . . Propulsion Burnouts . | . . . . . . . Robots Hopped . | . . . . . . . Potential Cave-ins . | . . . . . . . Cave-ins Triggered . | . . . . . . . Exploration Rate (%) 42 | 4 95 21 85 15 68 11 Regions Visited 6 Branch Regions 2 Pre-discovered Areas 1 | . 1 . . . . . Known Exits Taken 1 | . . . . 1 . . Unknown Exits Taken 4 | 1 1 1 1 . . . Scrap Searched 5 | . . . 5 . . . Spaces Dug 19 | . 19 . . . . . Terrain Destroyed 88 | . 29 . . 38 16 5 Melee . | . . . . . . . Projectile 27 | . . . . 6 16 5 AOE 60 | . 29 . . 31 . . Terrain Rammed . | . . . . . . . Walls Destroyed . | . . . . . . . Machines Disabled . | . . . . . . . Actions | -11 -10 -10 -7 -5 -5 -5 --------- Run | Yrd Mat Sub Scr Fac Gar Fac Total 5271 | 72 675 170 1341 1314 1325 374 Wait 140 | . 15 . 5 87 30 3 Move 4243 | 57 567 144 1270 913 980 312 Hop . | . . . . . . . Pick Up 100 | 4 19 5 22 27 21 2 Fast Attach 78 | 7 3 . 5 30 25 8 Attach 50 | . 1 4 . 25 20 . Detach 7 | . . . . 5 2 . Swap 44 | 1 6 1 3 11 19 3 Drop 113 | . 10 1 32 33 27 10 Fire 415 | 3 51 15 4 181 125 36 Melee 34 | . . . . . 34 . Ram . | . . . . . . . Kick . | . . . . . . . Crush 5 | . 3 . . 2 . . Escape Stasis 3 | . . . . . 3 . Rewire 39 | . . . . . 39 . Trap . | . . . . . . . Miscellaneous . | . . . . . . . Route ------- -11/Scrapyard -10/Materials (discovered 5 exits: [*Mat x3] / *Min / *Sub) -10/Subcaves -7/Scraptown (discovered 2 exits: *Fac x2) -5/Factory (discovered 3 exits: Fac / [*Upp] / Gar) -5/Garrison (discovered 3 exits: *Fac x3) -5/Factory History --------- Turn | Location | Event 21 | -11/Scrapyard | Discovered new exit (range 16) 113 | -11/Scrapyard | Entered Materials 304 | -10/Materials | Build established: Mutant 317 | -10/Materials | Identified exit to Mines 613 | -10/Materials | Derelicts attacked the area 786 | -10/Materials | Discovered new exit (range 13) 1072 | -10/Materials | Discovered new exit (range 15) 1433 | -10/Materials | Discovered new exit (range 9) 1504 | -10/Materials | Discovered new exit (range 16) 1674 | -10/Materials | Entered Subcaves 1675 | -10/Subcaves | Approached by a straggling Scientist 1727 | -10/Subcaves | A swath of the cavern ceiling suddenly collapsed 1875 | -10/Subcaves | Visited Clippyterm 1882 | -10/Subcaves | Learned Factory emergency access door positions 1882 | -10/Subcaves | Learned Factory garrison access intel 1929 | -10/Subcaves | Core integrity fell below 50% 1964 | -10/Subcaves | Lost 4 parts (2n2w) 2062 | -10/Subcaves | Scientist uncovered a shortcut to Scraptown 2076 | -10/Subcaves | Entered Scraptown 2613 | -7/Scraptown | Scanned Subdweller tech in exchange for log data 2623 | -7/Scraptown | Learned location of 1 exit from Factory 2625 | -7/Scraptown | Learned Research stockpile data 2628 | -7/Scraptown | Learned Factory stockpile data 2630 | -7/Scraptown | Learned Research emergency access door positions 2683 | -7/Scraptown | Discovered new exit (range 5) 2853 | -7/Scraptown | Visited Spacefarers 2964 | -7/Scraptown | Visited Shadow of the Wyrm 3101 | -7/Scraptown | Visited Awakened 3513 | -7/Scraptown | Visited Symbiants 3688 | -7/Scraptown | Visited Cave Peace 3777 | -7/Scraptown | Visited SPCMW 3839 | -7/Scraptown | Visited Bundlers 3989 | -7/Scraptown | Visited UFD Registry 3989 | -7/Scraptown | Registered with UFD as "Ionripper" 4130 | -7/Scraptown | Visited LU-1G1's Boring Crew 4185 | -7/Scraptown | Visited DA-N13 Charitable Foundation 4236 | -7/Scraptown | Visited Junk Repository 4314 | -7/Scraptown | Visited Derelict Rescue Squad 4354 | -7/Scraptown | Found DRS Beacon 4509 | -7/Scraptown | Visited Research Penetration Think Tank 4562 | -7/Scraptown | Visited Curators Association 4619 | -7/Scraptown | Visited Scrap Suit Storage 4647 | -7/Scraptown | Found Scrap Suit 4708 | -7/Scraptown | Visited Scrapoid Research Area 4787 | -7/Scraptown | Visited Scrapoid Pod Storage 4799 | -7/Scraptown | Found Scrapoid Pod 4882 | -7/Scraptown | Met Optimus 4882 | -7/Scraptown | Accepted into 0bPrime 5010 | -7/Scraptown | Civil war broke out across Scraptown 5094 | -7/Scraptown | Lost 9 allies 5119 | -7/Scraptown | Discovered new exit (range 5) 5162 | -7/Scraptown | Entered Factory 5162 | -5/Factory | Evolved 10 slots: Power x1, Propulsion x3, Utility x5, Weapon x1 5163 | -5/Factory | Identified exit to Factory 5166 | -5/Factory | Loaded intel: 4 garrison access locations 5214 | -5/Factory | Identified exit to DSF 5421 | -5/Factory | Build established: Scavenger-Scrapper 6112 | -5/Factory | Lost 3 parts (1p1n1u) 6638 | -5/Factory | Garrison activated, responded to threat 6796 | -5/Factory | Garrison activated, responded to threat 6819 | -5/Factory | Lost 18 parts (5p3n4u6w) 6986 | -5/Factory | Core integrity fell below 50% 7068 | -5/Factory | Discovered new exit (range 6) 7124 | -5/Factory | Build established: Scavenger-Gunner 7186 | -5/Factory | Identified exit to Garrison 7210 | -5/Factory | Entered Garrison 7246 | -5/Garrison | Triggered checkpoint 7326 | -5/Garrison | Garrison Relay disabled 7340 | -5/Garrison | Lost 3 parts (1p1n1w) 7432 | -5/Garrison | Destroyed 12 combat bots 7579 | -5/Garrison | Triggered checkpoint 7606 | -5/Garrison | Lost 3 allies 7655 | -5/Garrison | Destroyed 11 combat bots 7658 | -5/Garrison | Lost 4 parts (1p2u1w) 7853 | -5/Garrison | Discovered new exit (range 12) 7912 | -5/Garrison | Garrison Relay disabled 7951 | -5/Garrison | Lost 3 parts (1n2w) 7961 | -5/Garrison | Triggered checkpoint 8176 | -5/Garrison | Core integrity fell below 20% 8483 | -5/Garrison | Triggered checkpoint 8530 | -5/Garrison | Lost 4 parts (1p3w) 8580 | -5/Garrison | Triggered checkpoint 8630 | -5/Garrison | Lost 3 parts (2p1w) 8659 | -5/Garrison | Garrison Relay disabled 8695 | -5/Garrison | Discovered new exit (range 12) 8707 | -5/Garrison | Identified exit to Factory 8769 | -5/Garrison | Build established: Scavenger-Mutant 8853 | -5/Garrison | System corruption reached 10% 8905 | -5/Garrison | Lost 9 parts (2p3n1u3w) 9008 | -5/Garrison | Discovered exit to Factory (range 12) 9019 | -5/Garrison | Installed Relay Interface Framework 9040 | -5/Garrison | Entered Factory 9227 | -5/Factory | Build established: Scavenger-Skirmisher 9241 | -5/Factory | Allied Derelicts emerged from ambush trap array 9340 | -5/Factory | First assault squad dispatched 9553 | -5/Factory | Destroyed by Y-64 Sentinel with KE Penetrator Last Messages --------------- Penetrator. 09529_ System corrupted: KE Penetrator misfires. 09529_ Slug penetrates T-07 Excavator. 09529_ Destroyed Seismic Detector. 09534_ Slug penetrates Wall. 09540_ Slug penetrates H-66 Slayer. 09541_ Slug penetrates Wall. 09542_ ALERT: Hostiles spotted, dispatching reinforcements to Terminal F016. 09544_ Slug penetrates H-66 Slayer. 09544_ Slug penetrates Wall. 09548_ Slug penetrates K-01 Serf. 09548_ K-01 Serf destroyed. 09548_ Destroyed Terrain Scanner. 09549_ Extracted 17 matter. 09549_ K-01 Serf collects debris. 09551_ Acquired 21 matter. 09552_ Slug penetrates Y-64 Sentinel. 09553_ PJ30Q&Z YFTUZ8 <,0O:PEP 2LCA ZZ/V6B 09553_ Penetrated by Slug. Map ----- +----------------------------------------------------+ | ?????????????????????????????????????????????????? | | ?????????????????????????????????????????????????? | | ?????????????????????????????????????????????????? | | ?????????????????????????????????????????????????? | | ?????????????????????????????????????????????????? | | ?????????????????????????????????????????????????? | | ?????????????????????????????????????????????????? | | ?????????????????????????????????????????????????? | | ?????????????????????????????????????????????????? | | ?????????????????????????????????????????????????? | | ?????????????????????????????????????????????????? | | ???????????????????###???????????????????????????? | | ??????????????????? ???????????????????????????? | | ??????????????????? ???????????????????????????? | | ??????????????????? ???????????????????????????? | | ??????????????????? ???????????????????????????? | | ??????????????????? ???????????????????????????? | | ??????????????????? ???????????????????????????? | | ??????????????????? ???????????????????????????? | | ??????????????????? ???????????????????????????? | | ??????????????????? ???????????????????????????? | | ??????????????????? ???????????????????????????? | | ?????????????#+#??## #???????????????????????????? | | ?????????????# #??#" "???????????????????????????? | | ???"" ######## ##### k############???????????????? | | ??""" + hh Y!@= u #????????????? | | ?? ????# ##/#############???????????????? | | ?? ????# ## = #??????????????????????? | | ?? ????# ##! #??????????????????????? | | ?? ????# #####+##+## """ #??????????????????????? | | ##+##### #?????????#= """ #??????????????????????? | | #?????????# """ #??????????????????????? | | #######?????????# #??????????????????????? | | !#???????????????########??????????????????????? | | ##=#?????????????????????????????????????????????? | | ##!#?????????????????????????????????????????????? | | ##=##????????????????????????????????????????????? | | # !=########?????????????????????????????????????? | | +!%*%!*]= +??????????????????????????????????? | | #%% ###* #??????????????????????????????????? | | ##%##???? #??????????????????????????????????? | | ## #???????? +??????????????????????????????????? | | ##+#### ?????????????????????????????????????????? | | # ?????????????????????????????????????????? | | # ?????????????????????????????????????????? | | """"" # ?????????????????????????????????????????? | | # ?????????????????????????????????????????? | | """"" # ?????????????????????????????????????????? | | # ?????????????????????????????????????????? | | """"" # #????????????????????????????????????????? | +----------------------------------------------------+ Best States ------------- Heat Dissipation 90 Energy Generation 35 Energy Capacity 480 Matter Stores 300 Matter Capacity 300 Sight Range 16 Robot Scan Range 16 Terrain Scan Range 16 Terrain Scan Density 10 Armor Coverage 225 Resistance: TH 20 Weapon Shielding 15 Point Defense Rating 80 Evasion (%) 70 Targeting Accuracy 10 Target Analysis 6 Recoil Reduction 5 Defensive Hacking 11 Item Schematics ----------------- None Robot Schematics ------------------ None Fabricated ------------ Nothing Repaired ---------- Nothing Alien Tech Used ----------------- None Achievements -------------- None Challenges ------------ None Game ------ Seed ControlMyomerAirjet Manual? 0 Play Time 01:36:41 Cumulative 62.1 hours Start 2025.05.18 @ 12:08:41 End 2025.05.18 @ 14:16:29 Sessions 1 Manual Loads 0 Difficulty Rogue Special Mode None Game No. 58 Rogue 58 Adventurer 0 Explorer 0 Win Type - Total 0 Types 0/0/0/0/0/0/0/0/0/0 Lore% 52 Gallery% 43 Achievement% 38 Wizard Run 0 Options --------- Layout 1 ASCII 0 Keyboard 0 Movement Mouse Keybinds 0 Fullscreen 1 Font 16/SmallcapsGlow Map View 55x38 Zoom Use 0% Tactical HUD 1 Map Filters NONE Filters NONE Steam 1 RUN: 7b9060dd-ae63-4018-bb63-375e18bde843